bitfinex-derivatives/quotes_BTCF0:USTF0_20250626
["timestamp","ask_amount","ask_price","bid_price","bid_amount"]
[1750900513498,0.3195726,107310.0,107300.0,0.20238265]
[1750900513700,0.53069221,107310.0,107300.0,0.20238265]
[1750900515195,0.53069221,107310.0,107300.0,0.56318265]
[1750900516701,0.53069221,107310.0,107300.0,0.20238265]
[1750900518903,0.53069221,107310.0,107300.0,0.001]
[1750900523406,0.89149221,107310.0,107300.0,0.001]
[1750900527824,1.38941182,107310.0,107300.0,1e-07]
[1750900528029,1.81741543,107310.0,107300.0,1e-07]
[1750900528617,1.60629582,107310.0,107300.0,1e-07]
[1750900528822,1.42003442,107310.0,107280.0,0.01521053]
[1750900529025,0.39741061,107290.0,107280.0,0.01521053]
[1750900529317,0.42532181,107290.0,107280.0,0.01521053]
[1750900529520,0.51832181,107290.0,107280.0,0.01521053]
[1750900530623,0.51832181,107290.0,107280.0,0.20151893]
[1750900531128,0.49041061,107290.0,107280.0,0.20151893]
[1750900531329,0.49041061,107290.0,107280.0,0.01521053]
[1750900531629,0.49041061,107290.0,107280.0,0.01721053]
[1750900531830,0.49041061,107290.0,107280.0,0.01821053]
[1750900533232,0.49041061,107290.0,107280.0,0.56531893]
[1750900533427,0.49041061,107290.0,107280.0,0.37901053]
[1750900533730,0.49041061,107290.0,107280.0,0.77643854]
[1750900533922,0.49041061,107290.0,107280.0,0.80843854]
[1750900534232,0.49041061,107290.0,107280.0,0.59731893]
[1750900535931,0.49041061,107290.0,107280.0,0.62213014]
[1750900536532,0.279291,107290.0,107280.0,0.62213014]
[1750900536732,0.49041061,107290.0,107280.0,0.62213014]
[1750900536933,0.39741061,107290.0,107280.0,0.80843854]
[1750900537133,0.39741061,107290.0,107280.0,0.87333854]
[1750900540035,0.39741061,107290.0,107280.0,1.00453854]
[1750900540432,0.186291,107290.0,107280.0,1.00453854]
[1750900540636,0.186291,107290.0,107280.0,1.21565815]
[1750900541034,0.186291,107290.0,107280.0,1.08445815]
[1750900541234,0.186291,107290.0,107280.0,1.78249815]
[1750900544034,0.186291,107290.0,107280.0,1.57137854]
[1750900544536,0.39741061,107290.0,107280.0,1.57137854]
[1750900545638,0.39741061,107290.0,107280.0,1.93217854]
[1750900546237,0.186291,107290.0,107280.0,2.14329815]
[1750900547531,0.186291,107290.0,107280.0,1.93217854]
[1750900548233,0.39741061,107290.0,107280.0,1.93217854]
[1750900548433,0.39741061,107290.0,107280.0,1.72105893]
[1750900548633,0.49181061,107290.0,107280.0,1.93217854]
[1750900548833,0.49181061,107290.0,107280.0,1.14061053]
[1750900549030,0.51981826,107290.0,107280.0,1.14061053]
[1750900549336,0.51981826,107290.0,107280.0,0.69651893]
[1750900549527,0.51981826,107290.0,107280.0,0.33571893]
[1750900549729,0.51981826,107290.0,107280.0,0.69651893]
[1750900551240,0.51981826,107290.0,107280.0,0.33571893]
[1750900553437,0.49181061,107290.0,107280.0,0.33571893]
[1750900554233,1.97053022,107290.0,107280.0,0.01821053]
[1750900554442,1.99855738,107290.0,107280.0,0.01821053]
[1750900555139,2.00785009,107290.0,107280.0,0.01821053]
[1750900556335,1.86718068,107290.0,107280.0,0.01821053]
[1750900556731,1.52718068,107290.0,107280.0,0.01821053]
[1750900556930,1.52718068,107290.0,107280.0,0.003]
[1750900557440,1.83718068,107290.0,107280.0,0.003]
[1750900560743,1.85371454,107290.0,107280.0,0.003]
[1750900568055,1.85371454,107290.0,107260.0,0.36573227]
[1750900568056,0.1863258,107270.0,107260.0,0.36573227]
[1750900568258,1.03469561,107270.0,107260.0,0.36573227]
[1750900568556,1.12929561,107270.0,107260.0,0.36573227]
[1750900568755,1.20550687,107270.0,107260.0,0.36573227]
[1750900569854,1.20550687,107270.0,107260.0,0.37073227]
[1750900570851,1.22255098,107270.0,107260.0,0.37073227]
[1750900571061,1.22255098,107270.0,107260.0,0.38595841]
[1750900571352,1.22255098,107270.0,107260.0,0.41635841]
[1750900571654,1.22255098,107270.0,107260.0,0.42035841]
[1750900576154,1.22255098,107270.0,107260.0,0.37473227]
[1750900576552,1.22255098,107270.0,107260.0,0.40773227]
[1750900578458,2.09425455,107270.0,107260.0,0.01393227]
[1750900578660,2.12218421,107270.0,107260.0,0.01393227]
[1750900578962,1.75218421,107270.0,107260.0,0.01393227]
[1750900580664,1.54094752,107270.0,107260.0,0.01293227]
[1750900581567,1.54094752,107270.0,107260.0,0.01093227]
[1750900582265,1.54094752,107270.0,107260.0,0.00693227]
[1750900582972,1.75218421,107270.0,107260.0,0.00693227]
[1750900589970,1.12278421,107270.0,107260.0,0.00693227]
[1750900590172,1.68958421,107270.0,107260.0,0.06793227]
[1750900591271,1.72028421,107270.0,107260.0,0.06793227]
[1750900592073,1.75098421,107270.0,107260.0,0.06793227]
[1750900592371,1.18418421,107270.0,107260.0,0.06793227]
[1750900592574,1.75098421,107270.0,107260.0,0.06793227]
[1750900592872,1.53974752,107270.0,107260.0,0.06793227]
[1750900598673,0.97294752,107270.0,107260.0,0.06793227]
[1750900598874,1.53974752,107270.0,107260.0,0.06793227]
[1750900602075,1.75098421,107270.0,107260.0,0.06793227]
[1750900603372,1.12278421,107270.0,107260.0,0.25427537]
[1750900603580,0.23129947,107270.0,107260.0,1.03754875]
[1750900603877,0.20336981,107270.0,107260.0,1.19966875]
[1750900604076,0.4146065,107270.0,107260.0,0.98843206]
[1750900604277,0.4146065,107270.0,107260.0,1.19966875]
[1750900604480,0.4146065,107270.0,107260.0,0.98843206]
[1750900604976,0.4146065,107270.0,107260.0,0.77719537]
[1750900605176,0.4146065,107270.0,107260.0,0.98843206]
[1750900611181,0.44250383,107270.0,107260.0,0.98843206]
[1750900613484,0.44250383,107270.0,107260.0,1.19966875]
[1750900614185,0.23126714,107270.0,107260.0,1.19966875]
[1750900614386,0.44250383,107270.0,107260.0,1.19966875]
[1750900614686,0.44250383,107270.0,107260.0,0.98843206]
[1750900615289,0.44250383,107270.0,107260.0,1.19966875]
[1750900623504,0.4146065,107270.0,107260.0,1.19966875]
[1750900624300,0.44259259,107270.0,107260.0,1.19966875]
[1750900626408,0.44259259,107270.0,107260.0,0.77719537]
[1750900626705,0.44259259,107270.0,107260.0,0.98843206]
[1750900629298,0.2955559,107270.0,107260.0,0.98843206]
[1750900629500,0.50679259,107270.0,107260.0,0.98843206]
[1750900630106,0.50679259,107270.0,107260.0,0.77719537]
[1750900630306,0.50679259,107270.0,107260.0,0.98843206]
[1750900630507,0.4788065,107270.0,107260.0,0.98843206]
[1750900630908,0.4788065,107270.0,107260.0,0.77719537]
[1750900631117,0.4788065,107270.0,107260.0,0.98843206]
[1750900632412,0.50680903,107270.0,107260.0,0.98843206]
[1750900633913,0.50680903,107270.0,107260.0,0.68519537]
[1750900634099,0.53780903,107270.0,107260.0,0.89643206]
[1750900634413,0.53780903,107270.0,107260.0,0.36773227]
[1750900634800,0.53780903,107270.0,107260.0,0.00693227]
[1750900646325,1.41984572,107270.0,107260.0,0.00693227]
[1750900646923,1.40280161,107270.0,107260.0,0.00693227]
[1750900647119,1.41941348,107270.0,107260.0,0.00693227]
[1750900647321,1.10941348,107270.0,107260.0,0.00693227]
[1750900648028,0.89817679,107270.0,107260.0,0.00693227]
[1750900650520,0.88156492,107270.0,107260.0,0.00693227]
[1750900651023,0.89857641,107270.0,107260.0,0.00693227]
[1750900651425,1.1098131,107270.0,107260.0,0.00693227]
[1750900651830,1.09280161,107270.0,107260.0,0.00693227]
[1750900652031,1.10995404,107270.0,107260.0,0.00693227]
[1750900657440,1.08195151,107270.0,107260.0,0.00693227]
[1750900657631,1.10987328,107270.0,107260.0,0.00693227]
[1750900664843,0.89863659,107270.0,107260.0,0.00693227]
[1750900665044,0.89863659,107270.0,107260.0,0.03873227]
[1750900666043,0.53783659,107270.0,107260.0,0.03873227]
[1750900667144,0.50683659,107270.0,107260.0,0.03873227]
[1750900667444,0.50683659,107270.0,107260.0,0.10113227]
[1750900668443,0.53903659,107270.0,107260.0,0.06903227]
[1750900669442,0.75027328,107270.0,107260.0,0.06903227]
[1750900669645,1.11107328,107270.0,107260.0,0.03873227]
[1750900671052,1.11107328,107270.0,107260.0,0.00693227]
[1750900674846,0.6885999,107270.0,107260.0,0.00693227]
[1750900675043,1.11107328,107270.0,107260.0,0.00693227]
[1750900677053,1.11070356,107270.0,107260.0,0.00693227]
[1750900680252,0.74990356,107270.0,107260.0,0.00693227]
[1750900680451,1.11089668,107270.0,107260.0,0.00693227]
[1750900681857,1.45089668,107270.0,107260.0,0.00693227]
[1750900687764,1.81169668,107270.0,107260.0,0.00693227]
[1750900687963,1.94297668,107270.0,107260.0,0.00693227]
[1750900690459,1.91505491,107270.0,107260.0,0.00693227]
[1750900690658,1.94294703,107270.0,107260.0,0.00693227]
[1750900692962,1.75662133,107270.0,107240.0,0.47177804]
[1750900693159,0.60883388,107250.0,107240.0,0.11097804]
[1750900693361,0.42548931,107250.0,107240.0,0.07797804]
[1750900693556,0.51928931,107250.0,107240.0,0.07797804]
[1750900694666,0.52881667,107250.0,107240.0,0.07797804]
[1750900695068,0.52881667,107250.0,107240.0,0.07897804]
[1750900695666,0.52881667,107250.0,107240.0,0.07797804]
[1750900695865,0.52881667,107250.0,107240.0,0.08197804]
[1750900696163,0.74005336,107250.0,107240.0,0.08597804]
[1750900696469,0.74005336,107250.0,107240.0,0.02307804]
[1750900697169,1.10085336,107250.0,107240.0,0.02307804]
[1750900700566,1.10085336,107250.0,107240.0,0.008]
[1750900700764,1.11782701,107250.0,107240.0,0.008]
[1750900701660,1.43782701,107250.0,107240.0,0.008]
[1750900703471,1.56910701,107250.0,107240.0,0.008]
[1750900703867,1.59910701,107250.0,107240.0,0.008]
[1750900704073,1.58957965,107250.0,107240.0,0.008]
[1750900704368,1.23957965,107250.0,107240.0,0.008]
[1750900704567,1.02834296,107250.0,107240.0,0.0384]
[1750900704966,1.23957965,107250.0,107240.0,0.008]
[1750900705366,1.24883221,107250.0,107240.0,0.008]
[1750900705562,1.55883221,107250.0,107240.0,0.008]
[1750900705974,1.24883221,107250.0,107240.0,0.008]
[1750900707671,0.82635883,107250.0,107240.0,0.008]
[1750900707871,1.00619552,107250.0,107240.0,0.041]
[1750900708370,0.99694296,107250.0,107240.0,0.037]
[1750900708570,0.99694296,107250.0,107240.0,0.0713]
[1750900708766,0.99694296,107250.0,107240.0,0.0693]
[1750900709466,1.00613417,107250.0,107240.0,0.0693]
[1750900709667,1.21737086,107250.0,107240.0,0.0693]
[1750900713772,1.14577965,107250.0,107240.0,0.0693]
[1750900713973,1.14577965,107250.0,107240.0,0.1021]
[1750900714669,0.93454296,107250.0,107240.0,0.1021]
[1750900717879,0.96694296,107250.0,107240.0,0.1021]
[1750900718175,1.17817965,107250.0,107240.0,0.1021]
[1750900718575,0.96694296,107250.0,107240.0,0.1021]
[1750900720974,0.99784296,107250.0,107240.0,0.1021]
[1750900721574,1.20907965,107250.0,107240.0,0.1021]
[1750900722776,0.99784296,107250.0,107240.0,0.1021]
[1750900724176,1.23957965,107250.0,107240.0,0.004]
[1750900724571,1.59957965,107250.0,107240.0,0.004]
[1750900724967,1.23957965,107250.0,107240.0,0.004]
[1750900729280,0.87877965,107250.0,107240.0,0.004]
[1750900729482,1.23957965,107250.0,107240.0,0.004]
[1750900735186,1.58957965,107250.0,107240.0,0.004]
[1750900735389,1.60957965,107250.0,107240.0,0.004]
[1750900739096,1.82081634,107250.0,107240.0,1e-07]
[1750900739587,0.1863779,107240.0,107230.0,0.42331973]
[1750900739784,2.22256009,107240.0,107230.0,0.42331973]
[1750900742490,2.22456009,107240.0,107230.0,0.42331973]
[1750900750098,0.1864128,107220.0,107210.0,0.0953]
[1750900750297,1.17672618,107220.0,107210.0,0.0953]
[1750900751492,1.17672618,107220.0,107210.0,0.0983]
[1750900751694,1.17672618,107220.0,107210.0,0.1013]
[1750900752596,1.17672618,107220.0,107210.0,0.1003]
[1750900752790,1.26033079,107220.0,107210.0,0.1003]
[1750900752994,1.29113079,107220.0,107210.0,0.1003]
[1750900753700,1.28183652,107220.0,107210.0,0.1003]
[1750900754201,1.30950607,107220.0,107210.0,0.1003]
[1750900755596,0.88703269,107220.0,107210.0,0.1003]
[1750900755796,1.30950607,107220.0,107210.0,0.1003]
[1750900756796,1.33960607,107220.0,107210.0,0.0695]
[1750900757504,1.70040607,107220.0,107210.0,0.005]
[1750900757691,2.31404276,107220.0,107210.0,0.005]
[1750900757895,2.31404276,107220.0,107200.0,0.01644485]
[1750900757896,0.1864302,107210.0,107200.0,0.01644485]
[1750900758094,1.20117313,107210.0,107200.0,0.01644485]
[1750900759103,1.80061313,107210.0,107200.0,0.01644485]
[1750900759403,1.80061313,107210.0,107200.0,0.01944485]
[1750900759702,1.80061313,107210.0,107200.0,0.02244485]
[1750900760402,1.80061313,107210.0,107200.0,0.01744485]
[1750900760597,1.80061313,107210.0,107200.0,0.01944485]
[1750900760906,1.15549644,107210.0,107200.0,0.01944485]
[1750900761105,1.15549644,107210.0,107200.0,0.11434485]
[1750900761304,2.05753313,107210.0,107200.0,0.01944485]
[1750900761505,2.12003313,107210.0,107200.0,0.01944485]
[1750900763300,2.12003313,107210.0,107200.0,0.00393279]
[1750900763601,1.01465527,107210.0,107200.0,0.00393279]
[1750900763906,2.13692865,107210.0,107200.0,0.00393279]
[1750900766108,2.13892865,107210.0,107200.0,0.00293279]
[1750900766708,2.12227313,107210.0,107200.0,0.00293279]
[1750900767004,2.13919813,107210.0,107200.0,0.00293279]
[1750900768707,2.14119813,107210.0,107200.0,0.00393279]
[1750900769909,1.78039813,107210.0,107200.0,0.00193279]
[1750900770099,2.14119813,107210.0,107200.0,0.00193279]
[1750900770609,2.14219813,107210.0,107200.0,0.00193279]
[1750900771612,1.44239813,107210.0,107200.0,0.00193279]
[1750900771907,2.14235813,107210.0,107200.0,0.00193279]
[1750900774906,1.78155813,107210.0,107200.0,0.00193279]
[1750900775108,2.14235813,107210.0,107200.0,0.00193279]
[1750900775322,2.14235813,107210.0,107200.0,9e-08]
[1750900776312,2.14135813,107210.0,107200.0,9e-08]
[1750900776513,2.14435813,107210.0,107200.0,9e-08]
[1750900777512,0.1864475,107200.0,107190.0,0.0324]
[1750900777710,1.42079043,107200.0,107190.0,0.0324]
[1750900779210,1.42379043,107200.0,107190.0,0.0334]
[1750900779410,1.42479043,107200.0,107190.0,0.0334]
[1750900782007,1.36359043,107200.0,107190.0,0.0334]
[1750900782205,1.33139043,107200.0,107190.0,1e-07]
[1750900782406,0.1864823,107180.0,107170.0,0.06483305]
[1750900782715,1.88530523,107180.0,107170.0,0.03163305]
[1750900782914,1.98320523,107180.0,107170.0,0.03163305]
[1750900783212,2.00000852,107180.0,107170.0,0.00093305]
[1750900784613,2.00100852,107180.0,107170.0,0.00293305]
[1750900785015,1.68100852,107180.0,107170.0,0.00293305]
[1750900785217,1.70100852,107180.0,107170.0,0.00293305]
[1750900785410,1.66790852,107180.0,107170.0,0.06493305]
[1750900787818,1.99790852,107180.0,107170.0,0.06493305]
[1750900790210,2.02970852,107180.0,107170.0,0.03453305]
[1750900791815,2.02970852,107180.0,107170.0,0.00293305]
[1750900792618,2.02970852,107180.0,107170.0,0.03523305]
[1750900792813,2.02970852,107180.0,107170.0,0.06733305]
[1750900793922,1.99790852,107180.0,107170.0,0.06733305]
[1750900794724,1.99791343,107180.0,107170.0,0.06733305]
[1750900794921,1.96611343,107180.0,107170.0,0.06733305]
[1750900795220,1.96611343,107180.0,107170.0,0.09983305]
[1750900796118,0.61276005,107180.0,107170.0,0.31106974]
[1750900796424,0.23196005,107180.0,107170.0,1.29497744]
[1750900796722,0.44319674,107180.0,107170.0,0.85836944]
[1750900798919,0.44319674,107180.0,107170.0,0.67186974]
[1750900799127,0.42638854,107180.0,107170.0,0.67186974]
[1750900799328,0.39871899,107180.0,107170.0,0.67186974]
[1750900799623,0.39871899,107180.0,107170.0,0.85836944]
[1750900800024,0.60995568,107180.0,107170.0,0.67186974]
[1750900800225,0.60995568,107180.0,107170.0,0.46063305]
[1750900801122,0.60995568,107180.0,107170.0,0.09983305]
[1750900801524,0.63736888,107180.0,107170.0,0.46063305]
[1750900801723,0.63736888,107180.0,107170.0,0.09983305]
[1750900802623,0.63736888,107180.0,107170.0,0.67186974]
[1750900802826,0.63736888,107180.0,107170.0,0.85836944]
[1750900803521,0.60995568,107180.0,107170.0,0.85836944]
[1750900804327,0.63739966,107180.0,107170.0,0.85836944]
[1750900804827,0.42616297,107180.0,107170.0,0.85836944]
[1750900806623,0.63739966,107180.0,107170.0,0.85836944]
[1750900806823,0.63739966,107180.0,107170.0,0.64713275]
[1750900807430,0.63739966,107180.0,107170.0,0.85836944]
[1750900808629,0.42616297,107180.0,107170.0,0.85836944]
[1750900815032,0.63739966,107180.0,107170.0,0.85836944]
[1750900815433,0.63739966,107180.0,107170.0,0.64713275]
[1750900815634,0.63739966,107180.0,107170.0,0.31106974]
[1750900815933,0.63739966,107180.0,107170.0,0.67186974]
[1750900816432,0.66919966,107180.0,107170.0,0.85836944]
[1750900816737,0.66919966,107180.0,107170.0,0.64713275]
[1750900816937,0.66919966,107180.0,107170.0,0.46063305]
[1750900817440,0.70009966,107180.0,107170.0,0.64713275]
[1750900821337,0.70009966,107180.0,107170.0,0.46063305]
[1750900821636,0.70009966,107180.0,107170.0,0.39603305]
[1750900821838,0.73239966,107180.0,107170.0,0.58253275]
[1750900822637,0.73239966,107180.0,107170.0,0.39603305]
[1750900824037,0.73239966,107180.0,107170.0,0.58253275]
[1750900830943,0.73239966,107180.0,107170.0,0.36373305]
[1750900831635,0.73239966,107180.0,107170.0,0.00293305]
[1750900832337,1.11239966,107180.0,107170.0,0.00293305]
[1750900832644,0.73239966,107180.0,107170.0,0.00293305]
[1750900839540,0.73239966,107180.0,107170.0,0.18943275]
[1750900841847,0.30992628,107180.0,107170.0,0.18943275]
[1750900842045,0.73239966,107180.0,107170.0,0.18943275]
[1750900842243,0.73239966,107180.0,107170.0,0.00293305]
[1750900842449,1.09319966,107180.0,107170.0,0.00293305]
[1750900848757,0.73239966,107180.0,107170.0,0.00293305]
[1750900852658,0.73239966,107180.0,107170.0,0.36373305]
[1750900853059,0.30992628,107180.0,107170.0,0.55023275]
[1750900853257,0.73239966,107180.0,107170.0,0.55023275]
[1750900853658,1.29991966,107180.0,107170.0,0.55023275]
[1750900855555,1.29991966,107180.0,107170.0,0.36373305]
[1750900855859,1.29991966,107180.0,107170.0,0.55023275]
[1750900856061,1.29991966,107180.0,107170.0,0.58313275]
[1750900857462,1.29991966,107180.0,107170.0,0.39663305]
[1750900859667,0.73239966,107180.0,107170.0,0.58313275]
[1750900859863,1.29991966,107180.0,107170.0,0.39663305]
[1750900861164,1.29991966,107180.0,107170.0,0.36373305]
[1750900861368,1.29991966,107180.0,107170.0,0.00293305]
[1750900867978,1.29991966,107180.0,107170.0,0.18943275]
[1750900868167,1.29991966,107180.0,107170.0,0.55023275]
[1750900868972,1.29991966,107180.0,107170.0,0.36373305]
[1750900869873,1.29991966,107180.0,107170.0,0.00293305]
[1750900870173,1.29991966,107180.0,107170.0,0.36373305]
[1750900874081,1.29987966,107180.0,107170.0,0.36373305]
[1750900874273,0.73239966,107180.0,107170.0,0.36373305]
[1750900874474,1.29987966,107180.0,107170.0,0.00293305]
[1750900875380,0.73239966,107180.0,107170.0,0.00293305]
[1750900875573,1.29987966,107180.0,107170.0,0.00293305]
[1750900875984,0.73239966,107180.0,107170.0,0.00293305]
[1750900876177,1.29987966,107180.0,107170.0,0.00293305]
[1750900877090,1.09319966,107180.0,107170.0,0.00293305]
[1750900877275,1.66067966,107180.0,107170.0,0.00293305]
[1750900877476,1.66167966,107180.0,107170.0,0.00293305]
[1750900878182,1.09319966,107180.0,107170.0,0.00293305]
[1750900878381,1.66167966,107180.0,107170.0,0.00293305]
[1750900878582,1.66067966,107180.0,107170.0,0.00093305]
[1750900878780,1.66167966,107180.0,107170.0,0.00193305]
[1750900882774,1.30087966,107180.0,107170.0,0.36273305]
[1750900883175,1.30087966,107180.0,107170.0,0.39343305]
[1750900884373,0.87840628,107180.0,107170.0,0.57993275]
[1750900884578,1.30087966,107180.0,107170.0,0.57993275]
[1750900886487,1.02644297,107180.0,107170.0,0.79116944]
[1750900886682,1.02644297,107180.0,107170.0,0.85266944]
[1750900886984,1.23767966,107180.0,107170.0,0.85266944]
[1750900887686,1.23767966,107180.0,107170.0,0.64143275]
[1750900889687,1.23767966,107180.0,107170.0,0.85266944]
[1750900893090,1.23767966,107180.0,107170.0,0.64143275]
[1750900893388,1.23767966,107180.0,107170.0,0.85266944]
[1750900895790,1.23767966,107180.0,107170.0,0.64143275]
[1750900895991,1.23767966,107180.0,107170.0,0.85266944]
[1750900897195,1.02644297,107180.0,107170.0,0.85266944]
[1750900899296,0.2330877,107190.0,107180.0,0.1864823]
[1750900899494,0.1864703,107190.0,107180.0,1.06405568]
[1750900900693,0.39770699,107190.0,107180.0,1.06405568]
[1750900900996,0.39770699,107190.0,107180.0,0.85281899]
[1750900901592,0.39970699,107190.0,107180.0,0.85381899]
[1750900901990,0.1884703,107190.0,107180.0,0.85381899]
[1750900902394,0.39970699,107190.0,107180.0,0.85381899]
[1750900903604,0.40170699,107190.0,107180.0,0.85381899]
[1750900905098,0.1904703,107190.0,107180.0,0.85381899]
[1750900905300,0.40170699,107190.0,107180.0,0.85381899]
[1750900906101,0.40170699,107190.0,107180.0,1.21461899]
[1750900912105,0.40170699,107190.0,107180.0,0.9419823]
[1750900912403,0.46610699,107190.0,107180.0,1.2469623]
[1750900912608,0.49920699,107190.0,107180.0,1.2469623]
[1750900913805,0.49920699,107190.0,107180.0,1.45819899]
[1750900913999,0.49920699,107190.0,107180.0,1.49009899]
[1750900918811,0.43280699,107190.0,107180.0,1.56997568]
[1750900919012,0.40170699,107190.0,107180.0,1.76649568]
[1750900919315,0.1904703,107190.0,107180.0,1.76649568]
[1750900919815,0.40170699,107190.0,107180.0,1.76649568]
[1750900920009,0.1904703,107190.0,107180.0,1.76649568]
[1750900922719,0.004,107190.0,107180.0,2.12729568]
[1750900923415,0.1864476,107200.0,107190.0,0.186465]
[1750900923619,0.1864476,107200.0,107190.0,0.86995284]
[1750900924316,0.27966,107210.0,107200.0,0.1864476]
[1750900924518,0.27966,107210.0,107200.0,1.42226429]
[1750900924717,0.49089669,107210.0,107200.0,1.55358429]
[1750900925320,0.27966,107210.0,107200.0,1.55358429]
[1750900925722,0.27966,107210.0,107200.0,1.76482098]
[1750900925917,0.1914416,107210.0,107200.0,1.76582098]
[1750900926116,0.186425,107220.0,107210.0,0.1864302]
[1750900926322,0.186425,107220.0,107210.0,0.83870431]
[1750900926923,0.3583127,107230.0,107220.0,0.1864128]
[1750900927123,0.56954939,107230.0,107220.0,1.32736949]
[1750900927426,0.56954939,107230.0,107220.0,1.35956949]
[1750900927629,0.60064939,107230.0,107220.0,1.35956949]
[1750900927923,0.3894127,107230.0,107220.0,1.1161328]
[1750900928321,0.67125357,107230.0,107220.0,1.1161328]
[1750900928516,0.67725357,107230.0,107220.0,1.1161328]
[1750900929723,0.71625357,107230.0,107220.0,1.1171328]
[1750900931521,0.71625357,107230.0,107220.0,0.5482128]
[1750900936830,1.45705357,107230.0,107220.0,0.001]
[1750900937126,1.48489392,107230.0,107220.0,0.001]
[1750900950733,1.61729392,107230.0,107220.0,0.001]
[1750900952235,1.75831131,107230.0,107220.0,0.001]
[1750900963646,1.62591131,107230.0,107220.0,0.001]
[1750900963845,1.67994218,107230.0,107220.0,0.0337]
[1750900964045,1.67994218,107230.0,107220.0,0.0943]
[1750900965743,1.53994218,107230.0,107220.0,0.0943]
[1750900965953,1.88994218,107230.0,107220.0,0.0943]
[1750900967249,2.10137131,107230.0,107220.0,0.0943]
[1750900967451,2.16507131,107230.0,107220.0,0.0337]
[1750900967646,2.16507131,107230.0,107220.0,0.001]
[1750900974248,2.16507131,107230.0,107220.0,1e-07]
[1750900974655,0.1864128,107220.0,107210.0,0.01522209]
[1750900974843,1.43441141,107220.0,107210.0,0.01522209]
[1750900975043,1.5086962,107220.0,107210.0,0.01522209]
[1750900977348,1.43441141,107220.0,107210.0,0.01522209]
[1750900977547,1.56641141,107220.0,107210.0,0.01522209]
[1750900978153,1.6406962,107220.0,107210.0,0.01522209]
[1750900978350,1.56641141,107220.0,107210.0,0.01522209]
[1750900979056,1.57241141,107220.0,107210.0,0.01622209]
[1750900979253,1.64823321,107220.0,107210.0,0.01622209]
[1750900979452,1.65323321,107220.0,107210.0,0.01622209]
[1750900980555,1.66998008,107220.0,107210.0,0.01622209]
[1750900981558,1.955694,107220.0,107210.0,9e-08]
[1750900985061,1.88140921,107220.0,107210.0,9e-08]
[1750900986869,1.88197029,107220.0,107210.0,9e-08]
[1750900990369,1.88172869,107220.0,107210.0,9e-08]
[1750900995573,1.69531589,107220.0,107190.0,0.0307]
[1750900995874,0.1864824,107180.0,107170.0,1.29965305]
[1750900996072,0.39791153,107180.0,107170.0,1.51108218]
[1750900996971,0.39791153,107180.0,107170.0,1.37936218]
[1750900997173,0.39791153,107180.0,107170.0,1.41236218]
[1750900997366,0.39891153,107180.0,107170.0,1.41536218]
[1750900997770,0.1874824,107180.0,107170.0,1.41536218]
[1750900997972,0.39891153,107180.0,107170.0,1.60186198]
[1750900998270,0.1874824,107180.0,107170.0,1.39043285]
[1750900998871,0.1874824,107180.0,107170.0,1.26943305]
[1750900999574,0.1874824,107180.0,107170.0,0.10243305]
[1750900999767,0.1874824,107180.0,107170.0,0.46323305]
[1750901001668,0.46955185,107180.0,107170.0,0.46323305]
[1750901002877,0.1874824,107180.0,107170.0,0.46323305]
[1750901003074,0.49740181,107180.0,107170.0,0.46323305]
[1750901004777,0.49740181,107180.0,107170.0,0.64973285]
[1750901004977,0.21533236,107180.0,107170.0,0.64973285]
[1750901005167,0.1874824,107180.0,107170.0,0.9318023]
[1750901011185,0.1874824,107180.0,107170.0,1.6873303]
[1750901011385,0.1874824,107180.0,107170.0,1.70243895]
[1750901013284,0.1874824,107180.0,107170.0,1.34163895]
[1750901013485,0.1874824,107180.0,107170.0,1.70243895]
[1750901014988,0.1874824,107180.0,107170.0,1.70238228]
[1750901015682,0.1874824,107180.0,107170.0,1.51577428]
[1750901016489,0.1874824,107180.0,107170.0,1.70238228]
[1750901017585,0.21535191,107180.0,107170.0,1.70238228]
[1750901017787,0.21535191,107180.0,107170.0,1.51577428]
[1750901019892,0.21535191,107180.0,107170.0,1.15497428]
[1750901020192,0.21535191,107180.0,107170.0,1.87657428]
[1750901021994,0.21535191,107180.0,107170.0,1.59450483]
[1750901022193,0.21535191,107180.0,107170.0,1.87657428]
[1750901024297,0.21535191,107180.0,107170.0,1.80600982]
[1750901025092,0.1874824,107180.0,107170.0,1.80600982]
[1750901026994,0.1874824,107180.0,107170.0,2.01751481]
[1750901027301,0.1874824,107180.0,107170.0,1.80600982]
[1750901028600,0.21539096,107180.0,107170.0,1.80600982]
[1750901030999,0.1874824,107180.0,107170.0,1.80600982]
[1750901032697,0.001,107180.0,107170.0,1.80600982]
[1750901032904,0.001,107180.0,107170.0,2.01751481]
[1750901033501,0.001,107180.0,107170.0,2.20412281]
[1750901033702,0.29683343,107200.0,107190.0,0.186465]
[1750901033902,0.29683343,107200.0,107190.0,1.45916999]
[1750901034106,0.60613842,107200.0,107190.0,1.45916999]
[1750901034805,0.60913842,107200.0,107190.0,1.45916999]
[1750901035105,0.60913842,107200.0,107190.0,1.46016999]
[1750901035302,0.61113842,107200.0,107190.0,1.248665]
[1750901035503,0.61113842,107200.0,107190.0,1.46016999]
[1750901036900,0.61113842,107200.0,107190.0,1.46931616]
[1750901045208,0.63903151,107200.0,107190.0,1.46931616]
[1750901049706,0.42752652,107200.0,107190.0,1.46931616]
[1750901050113,0.38091212,107200.0,107190.0,1.46931616]
[1750901050412,0.271276,107200.0,107190.0,1.46931616]
[1750901050614,0.005,107200.0,107190.0,1.79278359]
[1750901050910,0.3123638,107210.0,107200.0,0.1864476]
[1750901051113,0.3402637,107210.0,107200.0,1.06715758]
[1750901051912,0.3705637,107210.0,107200.0,1.06715758]
[1750901052416,0.58606869,107210.0,107200.0,0.85665259]
[1750901053316,0.58906869,107210.0,107200.0,0.85665259]
[1750901054115,0.58906869,107210.0,107200.0,0.82415259]
[1750901054316,0.62006869,107210.0,107200.0,0.82415259]
[1750901054513,0.62006869,107210.0,107200.0,0.79295259]
[1750901054913,0.62006869,107210.0,107200.0,0.75975259]
[1750901056310,0.4085637,107210.0,107200.0,0.5482476]
[1750901058917,0.69047556,107210.0,107200.0,0.5482476]
[1750901059218,0.69047556,107210.0,107200.0,1.2492876]
[1750901060721,0.4085637,107210.0,107200.0,1.2492876]
[1750901060921,0.4085637,107210.0,107200.0,0.6804476]
[1750901066325,0.3775637,107210.0,107200.0,0.99335946]
[1750901066526,0.3775637,107210.0,107200.0,1.05535946]
[1750901067726,0.3775637,107210.0,107200.0,0.7734476]
[1750901067926,0.3145637,107210.0,107200.0,1.05535946]
[1750901070826,0.0348999,107210.0,107200.0,1.05535946]
[1750901071033,0.2213301,107210.0,107200.0,1.05535946]
[1750901075330,0.1934302,107210.0,107200.0,1.05535946]
[1750901078230,0.1934302,107210.0,107200.0,1.19624284]
[1750901078624,0.40482782,107210.0,107200.0,1.19624284]
[1750901078830,0.40482782,107210.0,107200.0,1.16434284]
[1750901079029,0.50052782,107210.0,107200.0,1.16434284]
[1750901079229,0.2891302,107210.0,107200.0,1.16434284]
[1750901079429,0.50052782,107210.0,107200.0,0.6804476]